fUST/lending_fUST_20241117
["ID","MTS","AMOUNT","RATE_DAILY","PERIOD"]
[342419793,1731841852185,-151.0,0.00021917,2]
[342419794,1731841852196,-668.32,0.00021917,2]
[342419795,1731841852205,-229.032119,0.00021917,2]
[342419796,1731841852215,-251.20699744,0.00021917,2]
[342419797,1731841852224,-1313.18,0.00021917,2]
[342419798,1731841852233,-974.6,0.00021917,2]
[342419799,1731841852243,-500.0,0.00021917,2]
[342419800,1731841852255,-512.11538092,0.00021917,2]
[342419801,1731841852265,-500.0,0.00021917,2]
[342419802,1731841852275,-500.0,0.00021917,2]
[342419803,1731841852284,-500.0,0.00021917,2]
[342419804,1731841852294,-500.0,0.00021917,2]
[342419805,1731841852306,-500.0,0.00021917,2]
[342419806,1731841852315,-500.0,0.00021917,2]
[342419807,1731841852324,-500.0,0.00021917,2]
[342419808,1731841852335,-500.0,0.00021917,2]
[342419809,1731841852346,-500.0,0.00021917,2]
[342419810,1731841852356,-500.0,0.00021917,2]
[342419811,1731841852365,-527.45,0.00021917,2]
[342419812,1731841852376,-500.0,0.00021917,2]
[342419813,1731841852386,-1510.62,0.00021917,2]
[342419814,1731841852396,-383.227065,0.00021917,2]
[342419815,1731841852405,-545.31458562,0.00021917,2]
[342419816,1731841852415,-500.75598878,0.00021917,2]
[342419817,1731841852425,-500.0,0.00021917,2]
[342419818,1731841852434,-854.51,0.00021917,2]
[342419819,1731841852443,-500.0,0.00021917,2]
[342419820,1731841852453,-500.0,0.00021917,2]
[342419821,1731841852462,-500.0,0.00021917,2]
[342419822,1731841852472,-500.0,0.00021917,2]
[342419823,1731841852481,-500.0,0.00021917,2]
[342419824,1731841852491,-1212.49,0.00021917,2]
[342419825,1731841852500,-500.0,0.00021917,2]
[342419826,1731841852509,-500.0,0.00021917,2]
[342419827,1731841852518,-500.0,0.00021917,2]
[342419828,1731841852527,-500.0,0.00021917,2]
[342419829,1731841852537,-500.0,0.00021917,2]
[342419830,1731841852547,-799.2,0.00021917,2]
[342419831,1731841852557,-1445.06,0.00021917,2]
[342419832,1731841852566,-500.0,0.00021917,2]
[342419833,1731841852575,-507.70772158,0.00021917,2]
[342419834,1731841852584,-500.0,0.00021917,2]
[342419835,1731841852593,-500.0,0.00021917,2]
[342419836,1731841852602,-500.0,0.00021917,2]
[342419837,1731841852612,-500.0,0.00021917,2]
[342419838,1731841852620,-500.0,0.00021917,2]
[342419839,1731841852630,-1955.68,0.00021917,2]
[342419840,1731841852639,-500.0,0.00021917,2]
[342419841,1731841852649,-385.68621816,0.00021917,2]
[342419842,1731841852658,-2993.96,0.00021917,2]
[342419843,1731841852667,-500.0,0.00021917,2]
[342419844,1731841852677,-1481.63,0.00021917,2]
[342419845,1731841852686,-500.0,0.00021917,2]
[342419846,1731841852696,-500.0,0.00021917,2]
[342419847,1731841852706,-500.0,0.00021917,2]
[342419848,1731841852716,-500.0,0.00021917,2]
[342419849,1731841852725,-771.01,0.00021917,2]
[342419850,1731841852735,-500.0,0.00021917,2]
[342419851,1731841852744,-500.0,0.00021917,2]
[342419852,1731841852753,-500.0,0.00021917,2]
[342419853,1731841852763,-500.0,0.00021917,2]
[342419854,1731841852772,-500.0,0.00021917,2]
[342419855,1731841852782,-519.58495991,0.00021917,2]
[342419856,1731841852791,-500.0,0.00021917,2]
[342419857,1731841852803,-500.0,0.00021917,2]
[342419858,1731841852812,-1150.31,0.00021917,2]
[342419859,1731841852821,-500.0,0.00021917,2]
[342419860,1731841852831,-1400.93,0.00021917,2]
[342419861,1731841852840,-24109.58,0.00021917,2]
[342419862,1731841852851,-500.0,0.00021917,2]
[342419863,1731841852861,-500.0,0.00021917,2]
[342419864,1731841852870,-832.43,0.00021917,2]
[342419865,1731841852880,-500.0,0.00021917,2]
[342419866,1731841852890,-154.13,0.0002192,7]
[342419867,1731841852900,-500.0,0.00021973,2]
[342419868,1731841852911,-500.0,0.00022173,2]
[342419869,1731841852920,-500.0,0.00022173,2]
[342419870,1731841852931,-500.0,0.00022173,2]
[342419871,1731841852940,-500.0,0.00022173,2]
[342419872,1731841852950,-500.0,0.00022173,2]
[342419873,1731841852960,-151.0,0.00022191,7]
[342419874,1731841852970,-151.0,0.00022191,7]
[342419875,1731841852980,-500.0,0.00022191,2]
[342419876,1731841852990,-388.13538197,0.00022191,2]
[342419877,1731841853000,-500.0,0.00022191,2]
[342419878,1731841853009,-500.0,0.00022191,2]
[342419879,1731841853018,-500.0,0.00022191,2]
[342419880,1731841853027,-525.11015931,0.00022191,2]
[342419881,1731841853037,-537.34180259,0.00022191,2]
[342419882,1731841853050,-500.0,0.00022191,2]
[342419883,1731841853060,-500.0,0.00022191,2]
[342419884,1731841853070,-500.0,0.00022191,2]
[342419885,1731841853079,-500.0,0.00022191,2]
[342419886,1731841853088,-500.0,0.00022191,2]
[342419887,1731841853098,-541.96606891,0.00022191,2]
[342419888,1731841853108,-500.0,0.00022191,2]
[342419889,1731841853118,-500.0,0.00022191,2]
[342419890,1731841853127,-500.0,0.00022191,2]
[342419891,1731841853137,-500.0,0.00022191,2]
[342419892,1731841853147,-500.0,0.00022191,2]
[342419893,1731841853156,-500.0,0.00022191,2]
[342419894,1731841853166,-500.0,0.00022191,2]
[342419895,1731841853227,-519.06579888,0.00022191,2]
[342419896,1731841853237,-545.16874777,0.00022191,2]
[342419897,1731841853246,-500.0,0.00022191,2]
[342419898,1731841853259,-804.8,0.00022191,2]
[342419899,1731841853269,-500.0,0.00022191,2]
[342419900,1731841853279,-500.0,0.00022191,2]
[342419901,1731841853287,-666.93,0.00022191,2]
[342419902,1731841853301,-509.89103226,0.00022191,2]
[342419903,1731841853312,-500.0,0.00022191,2]
[342419904,1731841853321,-459.17730136,0.00022191,2]
[342419905,1731841853330,-1268.22,0.00022191,2]
[342419906,1731841853341,-500.0,0.00022191,2]
[342419907,1731841853349,-500.0,0.00022191,2]
[342419908,1731841853359,-576.85948927,0.00022191,2]
[342419909,1731841853368,-500.0,0.00022191,2]
[342419910,1731841853377,-500.0,0.00022191,2]
[342419911,1731841853386,-500.0,0.00022191,2]
[342419912,1731841853395,-875.21,0.00022191,2]
[342419913,1731841853404,-500.0,0.00022191,2]
[342419914,1731841853414,-500.0,0.00022191,2]
[342419915,1731841853423,-500.0,0.00022191,2]
[342419916,1731841853432,-500.0,0.00022191,2]
[342419917,1731841853442,-500.0,0.00022191,2]
[342419918,1731841853453,-500.0,0.00022191,2]
[342419919,1731841853462,-500.0,0.00022191,2]
[342419920,1731841853471,-500.0,0.00022191,2]
[342419921,1731841853480,-500.0,0.00022191,2]
[342419922,1731841853489,-500.0,0.00022191,2]
[342419923,1731841853498,-503.13356963,0.00022191,2]
[342419924,1731841853507,-521.49923491,0.00022191,2]
[342419925,1731841853516,-500.0,0.00022191,2]
[342419926,1731841853525,-500.0,0.00022191,2]
[342419927,1731841853535,-500.0,0.00022191,2]
[342419928,1731841853544,-500.0,0.00022191,2]
[342419929,1731841853557,-500.0,0.00022191,2]
[342419930,1731841853566,-500.0,0.00022191,2]
[342419931,1731841853575,-500.0,0.00022191,2]
[342419932,1731841853584,-500.0,0.00022191,2]
[342419933,1731841853593,-500.0,0.00022191,2]
[342419934,1731841853602,-500.0,0.00022191,2]
[342419935,1731841853611,-500.0,0.00022191,2]
[342419936,1731841853620,-548.89,0.00022191,2]
[342419937,1731841853629,-500.0,0.00022191,2]
[342419938,1731841853638,-500.0,0.00022191,2]
[342419939,1731841853648,-500.0,0.00022191,2]
[342419940,1731841853657,-500.0,0.00022191,2]
[342419941,1731841853667,-500.0,0.00022191,2]
[342419942,1731841853676,-500.0,0.00022191,2]
[342419943,1731841853686,-500.0,0.00022191,2]
[342419944,1731841853696,-500.0,0.00022191,2]
[342419945,1731841853705,-500.0,0.00022191,2]
[342419946,1731841853715,-1059.37,0.00022191,2]
[342419947,1731841853723,-500.0,0.00022191,2]
[342419948,1731841853732,-500.0,0.00022191,2]
[342419949,1731841853742,-511.98905388,0.00022191,2]
[342419950,1731841853751,-772.06,0.00022191,2]
[342419951,1731841853760,-500.0,0.00022191,2]
[342419952,1731841853769,-906.47,0.00022191,2]
[342419953,1731841853784,-500.0,0.00022191,2]
[342419954,1731841853793,-514.18908545,0.00022191,2]
[342419955,1731841853804,-500.0,0.00022191,2]
[342419956,1731841853813,-500.0,0.00022191,2]
[342419957,1731841853822,-500.0,0.00022191,2]
[342419958,1731841853831,-593.98,0.00022191,2]
[342419959,1731841853840,-500.0,0.00022191,2]
[342419960,1731841853849,-500.0,0.00022191,2]
[342419961,1731841853858,-500.0,0.00022191,2]
[342419962,1731841853867,-500.0,0.00022191,2]
[342419963,1731841853878,-750.17,0.00022191,2]
[342419964,1731841853887,-500.0,0.00022191,2]
[342419965,1731841853896,-500.0,0.00022191,2]
[342419966,1731841853905,-500.0,0.00022191,2]
[342419967,1731841853914,-500.0,0.00022191,2]
[342419968,1731841853923,-605.20093321,0.00022191,2]
[342419969,1731841853933,-500.0,0.00022191,2]
[342419970,1731841853943,-602.23,0.00022191,2]
[342419971,1731841853952,-562.72335307,0.00022191,2]
[342419972,1731841853962,-500.0,0.00022191,2]
[342419973,1731841853971,-813.11,0.00022191,2]
[342419974,1731841853980,-500.0,0.00022191,2]
[342419975,1731841853989,-500.0,0.00022191,2]
[342419976,1731841853998,-1019.11,0.00022191,2]
[342419977,1731841854008,-500.0,0.00022191,2]
[342419978,1731841854017,-500.0,0.00022191,2]
[342419979,1731841854026,-500.0,0.00022191,2]
[342419980,1731841854036,-500.0,0.00022191,2]
[342419981,1731841854048,-500.0,0.00022191,2]
[342419982,1731841854057,-503.74370014,0.00022191,2]
[342419983,1731841854067,-500.0,0.00022191,2]
[342419984,1731841854076,-1621.7,0.00022191,2]
[342419985,1731841854086,-500.0,0.00022191,2]
[342419986,1731841854096,-500.0,0.00022191,2]
[342419987,1731841854105,-500.0,0.00022191,2]
[342419988,1731841854114,-500.0,0.00022191,2]
[342419989,1731841854124,-500.0,0.00022191,2]
[342419990,1731841854133,-500.0,0.00022191,2]
[342419991,1731841854142,-500.0,0.00022191,2]
[342419992,1731841854152,-500.0,0.00022191,2]
[342419993,1731841854162,-500.0,0.00022191,2]
[342419994,1731841854174,-500.0,0.00022191,2]
[342419995,1731841854186,-500.0,0.00022191,2]
[342419996,1731841854195,-500.0,0.00022191,2]
[342419997,1731841854204,-500.0,0.00022191,2]
[342419998,1731841854214,-500.0,0.00022191,2]
[342419999,1731841854223,-500.0,0.00022191,2]
[342420000,1731841854233,-500.0,0.00022191,2]
[342420001,1731841854246,-500.0,0.00022191,2]
[342420002,1731841854257,-500.0,0.00022191,2]
[342420003,1731841854267,-515.44,0.00022191,2]
[342420004,1731841854276,-500.0,0.00022191,2]
[342420005,1731841854286,-500.0,0.00022191,2]
[342420006,1731841854297,-1137.56,0.00022191,2]
[342420007,1731841854306,-500.0,0.00022191,2]
[342420008,1731841854316,-410.54769833,0.00022191,2]
[342420009,1731841854325,-500.0,0.00022191,2]
[342420010,1731841854334,-500.0,0.00022191,2]
[342420011,1731841854343,-2020.42484185,0.00022191,2]
[342420012,1731841854352,-21.46706614,0.00022191,2]
[342420013,1731841854669,-521.37541364,0.00022191,2]
[342420014,1731841854679,-17.62458636,0.00022191,2]
[342420016,1731842227442,2764.32093786,0.00019,6]
[342420017,1731842236662,250.0,0.00019,6]
[342420077,1731843032128,-300.0,0.00010899,2]
[342420079,1731843032138,-300.0,0.00010899,2]
[342420081,1731843032148,-5540.85232462,0.000109,2]
[342420083,1731843032159,-692.3,0.000109,2]
[342420095,1731843032270,-4383.65740998,0.000109,2]
[342420097,1731843032280,-271.49022821,0.00011878,2]
[342420099,1731843032290,-420.0,0.00011978,2]
[342420100,1731843032300,-420.0,0.00011989,2]
[342420102,1731843032310,-505.0,0.00013164,2]
[342420103,1731843032320,-180.0,0.00013188,2]
[342420104,1731843032332,-400.0,0.00013973,2]
[342420105,1731843032341,-2275.4079351,0.00018131,2]
[342420106,1731843032351,-844.3340769,0.00018239,2]
[342420107,1731843032360,-161.443946,0.00019178,2]
[342420108,1731843032370,-700.786519,0.0001999,2]
[342420109,1731843032379,-164.172661,0.00020086,2]
[342420110,1731843032388,-315.272899,0.0002012,2]
[342420111,1731843032398,-3877.38574,0.00020333,2]
[342420112,1731843032407,-400.0,0.00020447,2]
[342420113,1731843032417,-700.786519,0.00020675,2]
[342420114,1731843032427,-11812.84694666,0.00021,2]
[342420115,1731843032436,-281.303622,0.000212,2]
[342420116,1731843032445,-700.786519,0.0002136,2]
[342420117,1731843032455,-435.14922057,0.00021717,2]
[342420118,1731843032465,-1087.82,0.00021789,2]
[342420119,1731843032475,-591.73053491,0.000218,10]
[342420120,1731843032484,-18714.97741767,0.00021817,2]
[342420121,1731843032494,-1000.0,0.00021817,2]
[342420122,1731843032503,-3000.0,0.000219,2]
[342420123,1731843032513,-167.512,0.000219,2]
[342420124,1731843032523,-618.97,0.00021907,3]
[342420125,1731843032532,-163.97829755,0.00021916,2]
[342420126,1731843032541,-160.45552052,0.00021916,2]
[342420127,1731843032551,-167.52168411,0.00021916,2]
[342420128,1731843032560,-500.0,0.00021916,2]
[342420129,1731843032569,-158.90427251,0.00021916,2]
[342420131,1731843032582,-500.0,0.00021916,2]
[342420132,1731843032592,-500.0,0.00021916,2]
[342420133,1731843032601,-313.57346384,0.00021916,2]
[342420135,1731843032611,-185.39612151,0.00021916,2]
[342420137,1731843032620,-500.0,0.00021916,2]
[342420140,1731843032631,-500.0,0.00021916,2]
[342420142,1731843032640,-500.0,0.00021916,2]
[342420144,1731843032650,-179.05466048,0.00021916,2]
[342420145,1731843032662,-500.0,0.00021916,2]
[342420147,1731843032672,-205.9468526,0.00021916,2]
[342420149,1731843032681,-200.0,0.00021916,4]
[342420151,1731843032691,-151.0,0.00021917,2]
[342420153,1731843032700,-151.0,0.00021917,2]
[342420155,1731843032709,-151.0,0.00021917,2]
[342420157,1731843032718,-151.0,0.00021917,2]
[342420159,1731843032728,-151.0,0.00021917,2]
[342420161,1731843032738,-151.0,0.00021917,2]
[342420163,1731843032749,-151.0,0.00021917,2]
[342420165,1731843032759,-151.0,0.00021917,2]
[342420167,1731843032768,-151.0,0.00021917,2]
[342420169,1731843032779,-151.0,0.00021917,2]
[342420171,1731843032788,-151.0,0.00021917,2]
[342420173,1731843032797,-151.0,0.00021917,2]
[342420175,1731843032807,-151.0,0.00021917,2]
[342420177,1731843032816,-151.0,0.00021917,2]
[342420179,1731843032826,-151.0,0.00021917,2]
[342420181,1731843032835,-151.0,0.00021917,2]
[342420183,1731843032845,-264.828668,0.00021917,2]
[342420185,1731843032855,-151.0,0.00021917,2]
[342420187,1731843032864,-151.0,0.00021917,2]
[342420189,1731843032874,-151.0,0.00021917,2]
[342420191,1731843032883,-151.0,0.00021917,2]
[342420193,1731843032892,-173.227607,0.00021917,2]
[342420195,1731843032902,-500.0,0.00021917,2]
[342420197,1731843032911,-500.0,0.00021917,2]
[342420199,1731843032921,-500.0,0.00021917,2]
[342420201,1731843032930,-466.38918078,0.00021917,2]
[342420203,1731843032940,-500.0,0.00021917,2]
[342420205,1731843032950,-500.0,0.00021917,2]
[342420207,1731843032960,-500.0,0.00021917,2]
[342420209,1731843032971,-500.0,0.00021917,2]
[342420211,1731843032981,-500.0,0.00021917,2]
[342420213,1731843032991,-500.0,0.00021917,2]
[342420215,1731843033001,-500.0,0.00021917,2]
[342420217,1731843033010,-530.03257383,0.00021917,2]
[342420219,1731843033021,-1186.3,0.00021917,2]
[342420221,1731843033030,-167.30644453,0.00021917,2]
[342420223,1731843033040,-500.0,0.00021917,2]
[342420225,1731843033049,-500.0,0.00021917,2]
[342420227,1731843033059,-1063.59,0.00021917,2]
[342420229,1731843033068,-592.65657697,0.00021917,2]
[342420231,1731843033078,-243.64099847,0.00021917,2]
[342420233,1731843033087,-500.0,0.00021917,2]
[342420235,1731843033097,-500.0,0.00021917,2]
[342420237,1731843033106,-500.0,0.00021917,2]
[342420239,1731843033117,-500.0,0.00021917,2]
[342420241,1731843033127,-500.0,0.00021917,2]
[342420243,1731843033137,-500.0,0.00021917,2]
[342420245,1731843033147,-500.0,0.00021917,2]
[342420247,1731843033156,-500.0,0.00021917,2]
[342420249,1731843033166,-500.0,0.00021917,2]
[342420251,1731843033176,-500.0,0.00021917,2]
[342420253,1731843033187,-500.0,0.00021917,2]
[342420255,1731843033197,-188.0,0.00021917,2]
[342420257,1731843033207,-500.0,0.00021917,2]
[342420259,1731843033217,-500.0,0.00021917,2]
[342420261,1731843033227,-500.0,0.00021917,2]
[342420263,1731843033239,-500.0,0.00021917,2]
[342420265,1731843033249,-210.64951012,0.00021917,2]
[342420267,1731843033258,-500.0,0.00021917,2]
[342420269,1731843033268,-500.0,0.00021917,2]
[342420271,1731843033279,-500.0,0.00021917,2]
[342420273,1731843033288,-500.0,0.00021917,2]
[342420274,1731843033298,-500.0,0.00021917,2]
[342420276,1731843033308,-500.0,0.00021917,2]
[342420277,1731843033317,-500.0,0.00021917,2]
[342420278,1731843033327,-500.0,0.00021917,2]
[342420279,1731843033337,-500.0,0.00021917,2]
[342420280,1731843033346,-500.0,0.00021917,2]
[342420281,1731843033356,-500.0,0.00021917,2]
[342420282,1731843033366,-500.0,0.00021917,2]
[342420283,1731843033375,-500.0,0.00021917,2]
[342420284,1731843033385,-500.0,0.00021917,2]
[342420285,1731843033396,-500.0,0.00021917,2]
[342420286,1731843033406,-500.0,0.00021917,2]
[342420287,1731843033416,-500.0,0.00021917,2]
[342420288,1731843033426,-500.0,0.00021917,2]
[342420289,1731843033436,-500.0,0.00021917,2]
[342420290,1731843033446,-500.0,0.00021917,2]
[342420291,1731843033456,-500.0,0.00021917,2]
[342420292,1731843033465,-500.0,0.00021917,2]
[342420293,1731843033475,-552.25088395,0.00021917,2]
[342420294,1731843033484,-500.0,0.00021917,2]
[342420295,1731843033496,-500.0,0.00021917,2]
[342420296,1731843033506,-500.0,0.00021917,2]
[342420297,1731843033516,-500.0,0.00021917,2]
[342420298,1731843033526,-500.0,0.00021917,2]
[342420299,1731843033536,-511.83176005,0.00021917,2]
[342420300,1731843033546,-500.0,0.00021917,2]
[342420301,1731843033555,-632.19836397,0.00021917,2]
[342420302,1731843033564,-500.0,0.00021917,2]
[342420303,1731843033576,-500.0,0.00021917,2]
[342420304,1731843033588,-500.0,0.00021917,2]
[342420305,1731843033598,-500.0,0.00021917,2]
[342420306,1731843033608,-500.0,0.00021917,2]
[342420307,1731843033619,-500.0,0.00021917,2]
[342420308,1731843033628,-500.0,0.00021917,2]
[342420309,1731843033637,-500.0,0.00021917,2]
[342420310,1731843033647,-500.0,0.00021917,2]
[342420311,1731843033659,-500.0,0.00021917,2]
[342420312,1731843033670,-811.59,0.00021917,2]
[342420313,1731843033679,-317.53,0.00021917,2]
[342420314,1731843033689,-546.44,0.00021917,2]
[342420315,1731843033698,-548.75784849,0.00021917,2]
[342420316,1731843033708,-500.0,0.00021917,2]
[342420317,1731843033718,-500.0,0.00021917,2]
[342420318,1731843033728,-500.0,0.00021917,2]
[342420319,1731843033739,-500.0,0.00021917,2]
[342420320,1731843033749,-500.0,0.00021917,2]
[342420321,1731843033759,-1455.61,0.00021917,2]
[342420322,1731843033769,-500.0,0.00021917,2]
[342420323,1731843033778,-500.0,0.00021917,2]
[342420324,1731843033788,-500.0,0.00021917,2]
[342420325,1731843033797,-509.99083311,0.00021917,2]
[342420326,1731843033806,-500.0,0.00021917,2]
[342420327,1731843033816,-500.0,0.00021917,2]
[342420328,1731843033825,-500.0,0.00021917,2]
[342420329,1731843033835,-500.0,0.00021917,2]
[342420330,1731843033844,-500.0,0.00021917,2]
[342420331,1731843033854,-553.82,0.00021917,2]
[342420332,1731843033863,-500.0,0.00021917,2]
[342420333,1731843033873,-500.0,0.00021917,2]
[342420334,1731843033882,-500.0,0.00021917,2]
[342420335,1731843033892,-500.0,0.00021917,2]
[342420336,1731843033902,-500.0,0.00021917,2]
[342420337,1731843033911,-500.0,0.00021917,2]
[342420338,1731843033921,-500.0,0.00021917,2]
[342420339,1731843033931,-1372.73,0.00021917,2]
[342420340,1731843033940,-500.0,0.00021917,2]
[342420341,1731843033951,-500.0,0.00021917,2]
[342420342,1731843033960,-500.0,0.00021917,2]
[342420343,1731843033970,-500.0,0.00021917,2]
[342420344,1731843033980,-500.0,0.00021917,2]
[342420345,1731843033991,-500.0,0.00021917,2]
[342420346,1731843034002,-500.0,0.00021917,2]
[342420347,1731843034012,-500.0,0.00021917,2]
[342420348,1731843034022,-500.0,0.00021917,2]
[342420349,1731843034031,-500.0,0.00021917,2]
[342420350,1731843034041,-205.00606331,0.00021917,2]
[342420351,1731843034051,-523.2788433,0.00021917,2]
[342420352,1731843034061,-569.01,0.00021917,2]
[342420353,1731843034070,-500.0,0.00021917,2]
[342420354,1731843034081,-500.0,0.00021917,2]
[342420355,1731843034091,-500.0,0.00021917,2]
[342420356,1731843034101,-500.0,0.00021917,2]
[342420357,1731843034111,-800.51,0.00021917,2]
[342420358,1731843034120,-500.0,0.00021917,2]
[342420359,1731843034130,-500.0,0.00021917,2]
[342420360,1731843034141,-500.0,0.00021917,2]
[342420361,1731843034150,-500.0,0.00021917,2]
[342420362,1731843034160,-500.0,0.00021917,2]
[342420363,1731843034169,-500.0,0.00021917,2]
[342420364,1731843034179,-500.0,0.00021917,2]
[342420365,1731843034188,-500.0,0.00021917,2]
[342420366,1731843034198,-500.0,0.00021917,2]
[342420367,1731843034208,-500.0,0.00021917,2]
[342420368,1731843034217,-500.0,0.00021917,2]
[342420369,1731843034227,-151.0,0.00021917,2]
[342420370,1731843034236,-500.0,0.00021917,2]
[342420371,1731843034247,-151.0,0.00021917,2]
[342420372,1731843034257,-151.0,0.00021917,2]
[342420373,1731843034267,-151.0,0.00021917,2]
[342420374,1731843034277,-500.0,0.00021917,2]
[342420375,1731843034287,-151.0,0.00021917,2]
[342420376,1731843034296,-500.0,0.00021917,2]
[342420377,1731843034306,-500.0,0.00021917,2]
[342420378,1731843034315,-151.0,0.00021917,2]
[342420379,1731843034325,-500.0,0.00021917,2]
[342420380,1731843034335,-500.0,0.00021917,2]
[342420381,1731843034344,-500.0,0.00021917,2]
[342420382,1731843034353,-500.0,0.00021917,2]
[342420383,1731843034363,-896.72,0.00021917,2]
[342420384,1731843034373,-500.0,0.00021917,2]
[342420385,1731843034383,-559.16524169,0.00021917,2]
[342420386,1731843034393,-677.83,0.00021917,2]
[342420387,1731843034403,-500.0,0.00021917,2]
[342420388,1731843034413,-500.0,0.00021917,2]
[342420389,1731843034423,-500.0,0.00021917,2]
[342420390,1731843034433,-1144.19,0.00021917,2]
[342420391,1731843034442,-500.0,0.00021917,2]
[342420392,1731843034452,-500.0,0.00021917,2]
[342420393,1731843034461,-238.94719483,0.00021917,2]
[342420394,1731843034470,-500.0,0.00021917,2]
[342420395,1731843034480,-699.08,0.00021917,2]
[342420396,1731843034492,-500.0,0.00021917,2]
[342420397,1731843034502,-500.0,0.00021917,2]
[342420398,1731843034512,-500.0,0.00021917,2]
[342420399,1731843034521,-500.0,0.00021917,2]
[342420400,1731843034532,-525.56,0.00021917,2]
[342420401,1731843034542,-500.0,0.00021917,2]
[342420402,1731843034552,-525.82269875,0.00021917,2]
[342420403,1731843034562,-500.0,0.00021917,2]
[342420404,1731843034572,-504.14188551,0.00021917,2]
[342420405,1731843034586,-500.0,0.00021917,2]
[342420406,1731843034595,-500.0,0.00021917,2]
[342420407,1731843034605,-151.0,0.00021917,2]
[342420408,1731843034615,-500.0,0.00021917,2]
[342420409,1731843034625,-500.0,0.00021917,2]
[342420410,1731843034635,-500.0,0.00021917,2]
[342420411,1731843034644,-500.0,0.00021917,2]
[342420412,1731843034655,-500.0,0.00021917,2]
[342420413,1731843034665,-500.0,0.00021917,2]
[342420414,1731843034675,-500.0,0.00021917,2]
[342420415,1731843034685,-500.0,0.00021917,2]
[342420416,1731843034695,-500.0,0.00021917,2]
[342420417,1731843034705,-500.0,0.00021917,2]
[342420418,1731843034715,-500.0,0.00021917,2]
[342420419,1731843034725,-499.48229396,0.00021917,2]
[342420420,1731843034962,-469.16749995,0.00021917,2]
[342420421,1731843034972,-500.0,0.00021917,2]
[342420422,1731843034981,-500.0,0.00021917,2]
[342420423,1731843034992,-500.0,0.00021917,2]
[342420424,1731843035002,-500.0,0.00021917,2]
[342420425,1731843035012,-500.0,0.00021917,2]
[342420426,1731843035022,-598.65492922,0.00021917,2]
[342420427,1731843035032,-500.0,0.00021917,2]
[342420428,1731843035042,-536.79,0.00021917,2]
[342420429,1731843035052,-500.0,0.00021917,2]
[342420430,1731843035061,-500.0,0.00021917,2]
[342420431,1731843035071,-500.0,0.00021917,2]
[342420432,1731843035080,-605.87,0.00021917,2]
[342420433,1731843035090,-500.0,0.00021917,2]
[342420434,1731843035099,-500.0,0.00021917,2]
[342420435,1731843035108,-500.0,0.00021917,2]
[342420436,1731843035117,-500.0,0.00021917,2]
[342420437,1731843035127,-500.0,0.00021917,2]
[342420438,1731843035136,-500.0,0.00021917,2]
[342420439,1731843035145,-500.0,0.00021917,2]
[342420440,1731843035154,-500.0,0.00021917,2]
[342420441,1731843035164,-500.0,0.00021917,2]